[Event "Eurasia Open Cup 2019"]
[Site "Ekaterinburg"]
[Date "2019.08.05"]
[Round "5.18"]
[White "Protopopova, Anastasiya"]
[Black "Khusenkhojaev, Muhammad"]
[Result "0-1"]
[ECO "D90"]
[WhiteElo "2272"]
[BlackElo "2441"]
[Annotator "NA"]
[PlyCount "64"]
[EventDate "2019.07.31"]
[EventType "swiss"]
[EventCountry "RUS"]
[SourceTitle "playchess.com"]
[Source "ChessBase"]
[SourceQuality "1"]
[TimeControl "5400+30"]

1. d4 {[%emt 0:00:00]} Nf6 {[%emt 0:00:00]} 2. c4 {[%emt 0:00:00]} g6 {[%emt 0:00:00]} 3. Nc3 {[%emt 0:00:00]} d5 {[%emt 0:00:03]} 4. Nf3 {[%emt 0:00:00]} Bg7 {[%emt 0:00:06]} 5. h4 {[%emt 0:00:00]} O-O {[%emt 0:00:15]} 6. cxd5 {[%emt 0:00:00] D90: Grünfeld: 4 Nf3 Bg7 sidelines} Nxd5 {[%emt 0:00:06]} 7. h5 {[%emt 0:00:00]} c5 {[%emt 0:00:12]} 8. hxg6 {[%emt 0:00:48]} hxg6 {[%emt 0:00:08]} 9. Bh6 {[%emt 0:00:00]} Bxh6 {[%emt 0:00:44]} 10. Rxh6 {[%emt 0:00:29]} Nxc3 {[%emt 0:01:00]} 11. bxc3 {[%emt 0:00:00]} Kg7 {[%emt 0:00:00]} 12. Rh4 $146 {[%emt 0:08:01]} ({Predecessor:} 12. Qd2 cxd4 {½-½ (42) Li,C (2735)-Svidler,P (2749) Geneva 2017}) 12... cxd4 {[%emt 0:00:28]} 13. cxd4 {[%emt 0:00:27]} Nd7 {[%emt 0:02:38]} 14. e4 {[%emt 0:05:12]} Nf6 {[%emt 0:06:29]} 15. Rc1 {[%emt 0:08:53]} Rh8 {[%emt 0:01:31]} 16. Rxh8 {[%emt 0:01:04]} Kxh8 {[%emt 0:02:20]} 17. Ng5 {[%emt 0:03:37]} Kg7 {[%emt 0:01:20]} 18. Bc4 {[%emt 0:00:51]} e6 {[%emt 0:01:58]} 19. Kf1 {[%emt 0:09:42]} Bd7 {[%emt 0:06:02]} 20. Qf3 {[%emt 0:14:59]} Bc6 {[%emt 0:11:42]} 21. Rd1 {[%emt 0:07:28]} Qc7 {[%emt 0:12:07]} 22. Bxe6 {[%emt 0:13:50] [#]} Rh8 $17 {[%emt 0:00:52]} 23. Bh3 {[%emt 0:08:19]} Rh5 {[%emt 0:00:08]} 24. Qe3 {[%emt 0:08:18]} Ng4 {[%emt 0:10:18]} 25. Qc1 {[%emt 0:01:55]} Bb5+ {[%emt 0:17:07]} 26. Ke1 {[%emt 0:00:04]} Qe7 {[%emt 0:02:45]} 27. Qf4 {[%emt 0:02:21]} f5 {[%emt 0:08:44]} 28. Qc7 {[%emt 0:00:57]} Bd7 {[%emt 0:01:13]} 29. f4 {[%emt 0:00:48]} Nf6 {[%emt 0:09:31]} 30. Qxb7 {[%emt 0:00:27]} Rh4 {[%emt 0:02:38]} 31. g3 {[%emt 0:04:10]} Nxe4 {[%emt 0:00:00]} 32. gxh4 {[%emt 0:00:53]} Nd6+ {[%emt 0:00:21]} 0-1

[Event "Eurasia Open Cup 2019"]
[Site "Ekaterinburg"]
[Date "2019.08.05"]
[Round "5.19"]
[White "Davtyan, Artur"]
[Black "Isanzhulov, Arystan"]
[Result "1-0"]
[ECO "D37"]
[WhiteElo "2440"]
[BlackElo "2278"]
[Annotator "NA"]
[PlyCount "69"]
[EventDate "2019.07.31"]
[EventType "swiss"]
[EventCountry "RUS"]
[SourceTitle "playchess.com"]
[Source "ChessBase"]
[SourceQuality "1"]
[TimeControl "5400+30"]

1. d4 {[%emt 0:00:00]} d5 {[%emt 0:00:00]} 2. Nf3 {[%emt 0:00:00]} e6 {[%emt 0:00:00]} 3. c4 {[%emt 0:00:00]} a6 {[%emt 0:00:00]} 4. cxd5 {[%emt 0:03:38]} exd5 {[%emt 0:00:35]} 5. Nc3 {[%emt 0:00:01]} Nf6 {[%emt 0:00:00]} 6. Bg5 {[%emt 0:00:57]} Be6 {[%emt 0:00:15]} 7. e3 {[%emt 0:00:06]} Nbd7 {[%emt 0:02:14]} 8. Bd3 {[%emt 0:01:19]} Bd6 {[%emt 0:09:11]} 9. Bf4 {[%emt 0:00:25]} Qe7 {[%emt 0:01:39]} 10. O-O {[%emt 0:00:21]} O-O {[%emt 0:02:53]} 11. h3 {[%emt 0:09:52]} Rfc8 {[%emt 0:17:13]} 12. Re1 {[%emt 0:01:50]} b6 {[%emt 0:07:25]} 13. Rc1 {[%emt 0:10:12]} h6 {[%emt 0:04:33]} 14. Bb1 $14 {[%emt 0:11:04]} Bb4 {[%emt 0:09:39]} 15. Nd2 {[%emt 0:13:45]} c5 {[%emt 0:08:19]} 16. Qf3 {[%emt 0:05:20]} Qf8 {[%emt 0:12:36]} 17. a3 {[%emt 0:02:38]} Ba5 {[%emt 0:00:22]} 18. Nb3 {[%emt 0:01:00]} Bxc3 {[%emt 0:00:48]} 19. Rxc3 {[%emt 0:00:40]} a5 {[%emt 0:00:41]} 20. Nd2 {[%emt 0:03:35]} c4 {[%emt 0:04:48]} 21. e4 {[%emt 0:03:21]} dxe4 {[%emt 0:03:53]} 22. Nxe4 {[%emt 0:00:22]} Nd5 {[%emt 0:00:00]} 23. Rcc1 {[%emt 0:05:15]} b5 {[%emt 0:04:40]} 24. Bd6 {[%emt 0:07:12]} Qd8 {[%emt 0:00:33]} 25. Nc5 {[%emt 0:00:03]} Qb6 {[%emt 0:00:31]} 26. Qg3 {[%emt 0:08:20]} Nxc5 {[%emt 0:00:42]} 27. dxc5 {[%emt 0:00:06]} Rxc5 {[%emt 0:00:35]} 28. Bxc5 {[%emt 0:00:11]} Qxc5 {[%emt 0:00:00]} 29. Qe5 {[%emt 0:00:57]} Qf8 {[%emt 0:07:25]} 30. Rcd1 {[%emt 0:02:44]} Rd8 {[%emt 0:01:11]} 31. Bf5 {[%emt 0:05:47]} Bxf5 {[%emt 0:01:29]} 32. Qxf5 {[%emt 0:03:23]} Nc7 {[%emt 0:00:58]} 33. Qe5 {[%emt 0:01:02]} Rc8 {[%emt 0:00:01]} 34. Re3 {[%emt 0:00:32]} Qe8 {[%emt 0:01:18]} 35. Qxc7 {[%emt 0:00:00]} 1-0

[Event "Eurasia Open Cup 2019"]
[Site "Ekaterinburg"]
[Date "2019.08.05"]
[Round "5.21"]
[White "Kopylov, Alexander A."]
[Black "Mamatov, Melis"]
[Result "1/2-1/2"]
[ECO "A07"]
[WhiteElo "2410"]
[BlackElo "2269"]
[Annotator "NA"]
[PlyCount "114"]
[EventDate "2019.07.31"]
[EventType "swiss"]
[EventCountry "RUS"]
[SourceTitle "playchess.com"]
[Source "ChessBase"]
[SourceQuality "1"]
[TimeControl "5400+30"]

1. Nf3 {[%emt 0:00:00]} Nf6 {[%emt 0:02:33]} 2. g3 {[%emt 0:00:00]} d5 {[%emt 0:02:47]} 3. Bg2 {[%emt 0:00:00]} Bf5 {[%emt 0:00:29]} 4. O-O {[%emt 0:00:11]} Nc6 {[%emt 0:00:29]} 5. c4 {[%emt 0:02:27]} Qd7 {[%emt 0:05:15]} 6. cxd5 {[%emt 0:02:14]} Nxd5 {[%emt 0:00:15]} 7. Nc3 {[%emt 0:00:41]} e6 {[%emt 0:13:00]} 8. Re1 {[%emt 0:06:21]} Nb6 {[%emt 0:04:00]} 9. d4 {[%emt 0:16:54]} Bg4 {[%emt 0:04:25]} 10. h3 {[%emt 0:05:20]} Bxf3 {[%emt 0:11:58]} 11. Bxf3 {[%emt 0:00:38]} Be7 {[%emt 0:00:48]} 12. e3 {[%emt 0:04:44]} O-O {[%emt 0:01:53]} 13. Bg2 $14 {[%emt 0:04:58]} Rab8 {[%emt 0:01:44]} 14. b3 {[%emt 0:01:26]} Bb4 {[%emt 0:06:31]} 15. Bb2 {[%emt 0:01:22]} Nd5 {[%emt 0:00:39]} 16. Rc1 {[%emt 0:09:21]} Nce7 {[%emt 0:01:03]} 17. Qg4 {[%emt 0:06:16]} c6 {[%emt 0:06:13]} 18. Nxd5 {[%emt 0:03:28]} cxd5 {[%emt 0:00:12]} 19. Red1 {[%emt 0:00:11]} Rbc8 {[%emt 0:00:53]} 20. Qe2 {[%emt 0:05:13]} Rxc1 {[%emt 0:00:24]} 21. Rxc1 {[%emt 0:00:00]} Rc8 {[%emt 0:00:00]} 22. Rxc8+ {[%emt 0:01:30]} Qxc8 {[%emt 0:00:42]} 23. Qb5 {[%emt 0:00:08]} Bd6 {[%emt 0:00:22]} 24. e4 {[%emt 0:06:15]} Qc6 {[%emt 0:05:16]} 25. Qa5 {[%emt 0:02:13]} Qb6 {[%emt 0:00:25]} 26. Qa4 {[%emt 0:00:48]} Kf8 {[%emt 0:05:47]} 27. e5 {[%emt 0:01:46]} Bb8 {[%emt 0:00:56]} 28. Ba3 {[%emt 0:03:52]} Qc6 {[%emt 0:00:43]} 29. Qb4 {[%emt 0:00:15]} Qc7 {[%emt 0:03:14]} 30. Bf1 {[%emt 0:07:41]} a6 {[%emt 0:01:25]} 31. Qa4 {[%emt 0:00:27]} Ba7 {[%emt 0:04:25]} 32. Kg2 {[%emt 0:00:16]} Bb6 {[%emt 0:01:52]} 33. Bd6 {[%emt 0:07:06]} Qc6 {[%emt 0:00:59]} 34. Qxc6 {[%emt 0:00:13]} bxc6 {[%emt 0:00:35]} 35. Bxa6 {[%emt 0:00:10]} Bxd4 {[%emt 0:00:00]} 36. Bb7 {[%emt 0:01:29]} Ke8 {[%emt 0:00:39]} 37. f4 {[%emt 0:00:42]} c5 {[%emt 0:01:31]} 38. a4 {[%emt 0:00:55]} Kd7 {[%emt 0:04:09]} 39. a5 {[%emt 0:00:21]} Nc6 {[%emt 0:00:35]} 40. a6 {[%emt 0:00:31]} c4 {[%emt 0:00:48]} 41. bxc4 {[%emt 0:00:04]} dxc4 {[%emt 0:00:01]} 42. Kf3 {[%emt 0:00:57]} f6 {[%emt 0:04:18]} 43. Ke2 {[%emt 0:00:07]} f5 {[%emt 0:03:37]} 44. Kd2 {[%emt 0:00:44]} h6 {[%emt 0:01:02]} 45. h4 {[%emt 0:00:59]} g6 {[%emt 0:00:23]} 46. Ke2 {[%emt 0:00:43]} h5 {[%emt 0:00:24]} 47. Kd2 {[%emt 0:00:24]} Na7 {[%emt 0:00:34]} 48. Bf3 {[%emt 0:00:12]} Bf2 {[%emt 0:00:54]} 49. Kc3 {[%emt 0:01:24]} Nb5+ {[%emt 0:00:40]} 50. Kxc4 {[%emt 0:00:00]} Nxd6+ {[%emt 0:00:00]} 51. exd6 {[%emt 0:00:00]} Kxd6 {[%emt 0:00:00]} 52. Kd3 {[%emt 0:00:21]} e5 {[%emt 0:01:25]} 53. fxe5+ {[%emt 0:00:11]} Kxe5 {[%emt 0:00:06]} 54. Ke2 {[%emt 0:00:41]} Bc5 {[%emt 0:00:42]} 55. Bc6 {[%emt 0:00:06]} f4 {[%emt 0:00:00]} 56. Kf3 {[%emt 0:00:00]} fxg3 {[%emt 0:00:30]} 57. Kxg3 {[%emt 0:00:00]} Kf6 {[%emt 0:00:08]} 1/2-1/2

[Event "Eurasia Open Cup 2019"]
[Site "Ekaterinburg"]
[Date "2019.08.05"]
[Round "5.22"]
[White "Popov, Mikhail"]
[Black "Fedotov, Alexey"]
[Result "1-0"]
[ECO "B12"]
[WhiteElo "2397"]
[BlackElo "2141"]
[Annotator "NA"]
[PlyCount "89"]
[EventDate "2019.07.31"]
[EventType "swiss"]
[EventCountry "RUS"]
[SourceTitle "playchess.com"]
[Source "ChessBase"]
[SourceQuality "1"]
[TimeControl "5400+30"]

1. e4 {[%emt 0:00:00]} c6 {[%emt 0:00:50]} 2. d4 {[%emt 0:00:00]} d5 {[%emt 0:00:14]} 3. e5 {[%emt 0:00:04]} Bf5 {[%emt 0:00:27]} 4. h4 {[%emt 0:01:16]} h5 {[%emt 0:01:45]} 5. Bd3 {[%emt 0:00:50]} Bxd3 {[%emt 0:01:17]} 6. Qxd3 {[%emt 0:00:06]} e6 {[%emt 0:00:00]} 7. Bg5 {[%emt 0:00:42]} Qb6 {[%emt 0:02:40]} 8. Nd2 {[%emt 0:00:53]} Qa6 {[%emt 0:02:30]} 9. c4 {[%emt 0:00:03]} Bb4 {[%emt 0:03:02]} 10. b3 {[%emt 0:01:41]} Nd7 {[%emt 0:01:31]} 11. Ne2 {[%emt 0:02:31]} Ne7 {[%emt 0:04:49]} 12. O-O {[%emt 0:02:24]} Nb6 {[%emt 0:09:14]} 13. Rac1 {[%emt 0:07:28]} Nf5 {[%emt 0:11:58]} 14. Ng3 {[%emt 0:02:28]} g6 {[%emt 0:02:37]} 15. Nxf5 {[%emt 0:05:19]} gxf5 {[%emt 0:00:18]} 16. Qc2 {[%emt 0:07:54]} Be7 $16 {[%emt 0:05:21]} 17. Nf3 {[%emt 0:10:28]} Bxg5 {[%emt 0:15:32]} 18. Nxg5 {[%emt 0:00:15]} Qa3 {[%emt 0:03:21]} 19. Qe2 {[%emt 0:06:54]} Qe7 {[%emt 0:05:05]} 20. a4 {[%emt 0:01:14]} Qb4 {[%emt 0:09:15]} 21. Rb1 {[%emt 0:06:00]} Rd8 {[%emt 0:03:06]} 22. Rfc1 {[%emt 0:04:59]} Nc8 {[%emt 0:07:35]} 23. Qe3 {[%emt 0:18:37]} Ne7 {[%emt 0:00:19]} 24. g3 {[%emt 0:00:50]} Ng6 {[%emt 0:01:47]} 25. Nh3 {[%emt 0:02:32]} Rd7 {[%emt 0:01:45]} 26. cxd5 {[%emt 0:02:19]} Rxd5 {[%emt 0:00:18]} 27. Rc4 {[%emt 0:00:05]} Qb6 {[%emt 0:01:47]} 28. b4 {[%emt 0:01:19]} a6 {[%emt 0:00:20]} 29. Rc5 {[%emt 0:05:13]} Rxc5 {[%emt 0:03:16]} 30. dxc5 {[%emt 0:00:01]} Qc7 {[%emt 0:00:06]} 31. Re1 {[%emt 0:01:31]} Rg8 {[%emt 0:00:39]} 32. Ng5 {[%emt 0:02:24]} Ne7 {[%emt 0:01:02]} 33. Qf3 {[%emt 0:02:49]} Rh8 {[%emt 0:01:08]} 34. b5 {[%emt 0:02:20]} axb5 {[%emt 0:00:45]} 35. axb5 {[%emt 0:00:30]} cxb5 {[%emt 0:00:26]} 36. Ra1 {[%emt 0:00:16]} Qb8 {[%emt 0:01:20]} 37. Qe2 {[%emt 0:00:47]} Nc6 {[%emt 0:00:22]} 38. Qxb5 {[%emt 0:00:51]} Ke7 {[%emt 0:00:33]} 39. Rb1 {[%emt 0:01:29]} Nd8 {[%emt 0:00:39]} 40. c6 {[%emt 0:01:10]} Nxc6 {[%emt 0:00:31]} 41. Qc5+ {[%emt 0:00:12]} Kd7 {[%emt 0:00:24]} 42. Nxf7 {[%emt 0:00:09]} Rg8 {[%emt 0:00:35]} 43. Nd6 {[%emt 0:00:32]} Nd8 {[%emt 0:00:29]} 44. Rd1 {[%emt 0:00:27]} Ke7 {[%emt 0:00:32]} 45. Nxf5+ {[%emt 0:00:20]} 1-0

[Event "Eurasia Open Cup 2019"]
[Site "Ekaterinburg"]
[Date "2019.08.05"]
[Round "5.23"]
[White "Nosacheva, Mariya"]
[Black "Cherniaev, Alexander"]
[Result "0-1"]
[ECO "B06"]
[WhiteElo "2150"]
[BlackElo "2396"]
[Annotator "NA"]
[PlyCount "162"]
[EventDate "2019.07.31"]
[EventType "swiss"]
[EventCountry "RUS"]
[SourceTitle "playchess.com"]
[Source "ChessBase"]
[SourceQuality "1"]
[TimeControl "5400+30"]

1. e4 {[%emt 0:00:00]} g6 {[%emt 0:00:00]} 2. d4 {[%emt 0:00:00]} Bg7 {[%emt 0:00:00]} 3. Nc3 {[%emt 0:00:00]} a6 {[%emt 0:00:00]} 4. f4 {[%emt 0:00:00]} d5 {[%emt 0:01:10]} 5. Nxd5 {[%emt 0:12:03]} e6 {[%emt 0:00:12]} 6. Ne3 {[%emt 0:00:41]} Qxd4 {[%emt 0:00:56]} 7. Qxd4 {[%emt 0:00:34]} Bxd4 {[%emt 0:00:00]} 8. Nf3 {[%emt 0:00:00]} Bg7 {[%emt 0:00:12]} 9. Bd3 {[%emt 0:04:30]} Nd7 {[%emt 0:00:47]} 10. c3 {[%emt 0:03:06]} b6 {[%emt 0:00:25]} 11. Bc2 {[%emt 0:06:50]} Bb7 {[%emt 0:00:09]} 12. e5 {[%emt 0:00:49]} Bxf3 {[%emt 0:08:11]} 13. gxf3 {[%emt 0:00:12]} O-O-O {[%emt 0:00:44]} 14. Ke2 {[%emt 0:07:01]} f6 {[%emt 0:02:29]} 15. Ng4 {[%emt 0:06:25]} Ne7 {[%emt 0:06:06]} 16. Bb3 {[%emt 0:03:43]} Nd5 $15 {[%emt 0:02:25]} 17. Rd1 {[%emt 0:00:15]} fxe5 {[%emt 0:02:49]} 18. Bxd5 {[%emt 0:01:08]} exd5 {[%emt 0:00:08]} 19. Rxd5 {[%emt 0:00:50]} Rde8 {[%emt 0:01:30]} 20. Kf2 {[%emt 0:02:32]} e4 {[%emt 0:27:18]} 21. fxe4 {[%emt 0:08:56]} h5 {[%emt 0:00:38]} 22. Ne5 {[%emt 0:02:11]} Bxe5 {[%emt 0:19:22]} 23. fxe5 {[%emt 0:00:42]} Nxe5 {[%emt 0:00:00]} 24. Bf4 {[%emt 0:07:08]} Rhf8 {[%emt 0:00:00]} 25. Rxe5 {[%emt 0:02:42]} Rxe5 {[%emt 0:00:35]} 26. Ke3 {[%emt 0:00:00]} Rb5 {[%emt 0:07:08]} 27. b4 {[%emt 0:02:39]} g5 {[%emt 0:00:05]} 28. Bg3 {[%emt 0:00:13]} g4 {[%emt 0:00:31]} 29. Bf4 {[%emt 0:01:32]} h4 {[%emt 0:00:02]} 30. Rg1 {[%emt 0:00:15]} Rg8 {[%emt 0:00:04]} 31. e5 {[%emt 0:00:49]} Rd5 {[%emt 0:00:00]} 32. Ke4 {[%emt 0:00:23]} Rdd8 {[%emt 0:00:43]} 33. e6 {[%emt 0:06:29]} Rde8 {[%emt 0:00:28]} 34. Kf5 {[%emt 0:00:17]} Rgf8+ {[%emt 0:03:43]} 35. Ke5 {[%emt 0:00:36]} Rxe6+ {[%emt 0:00:18]} 36. Kxe6 {[%emt 0:00:00]} Rxf4 {[%emt 0:00:08]} 37. Ke5 {[%emt 0:00:17]} Rc4 {[%emt 0:01:15]} 38. Kf5 {[%emt 0:00:35]} Rxc3 {[%emt 0:00:29]} 39. Rxg4 {[%emt 0:01:33]} Rh3 {[%emt 0:07:09]} 40. Rg2 {[%emt 0:00:11]} Ra3 {[%emt 0:00:00]} 41. Rg4 {[%emt 0:01:22]} h3 {[%emt 0:00:07]} 42. Rh4 {[%emt 0:00:05]} Kb7 {[%emt 0:01:06]} 43. Rh6 {[%emt 0:01:08]} a5 {[%emt 0:05:56]} 44. bxa5 {[%emt 0:00:57]} Rxa5+ {[%emt 0:00:59]} 45. Ke4 {[%emt 0:00:38]} Ra4+ {[%emt 0:02:13]} 46. Kd5 {[%emt 0:00:46]} Ra3 {[%emt 0:03:18]} 47. Kc4 {[%emt 0:03:04]} Rxa2 {[%emt 0:00:29]} 48. Rxh3 {[%emt 0:00:12]} c5 {[%emt 0:00:12]} 49. Rh8 {[%emt 0:04:32]} Ra4+ {[%emt 0:00:26]} 50. Kb3 {[%emt 0:00:14]} Rg4 {[%emt 0:00:47]} 51. h3 {[%emt 0:01:12]} Rf4 {[%emt 0:00:08]} 52. h4 {[%emt 0:00:19]} Kc6 {[%emt 0:00:25]} 53. h5 {[%emt 0:00:00]} Rf3+ {[%emt 0:00:09]} 54. Kc2 {[%emt 0:01:41]} Rh3 {[%emt 0:00:00]} 55. h6 {[%emt 0:00:00]} Kb5 {[%emt 0:00:50]} 56. h7 {[%emt 0:00:44]} c4 {[%emt 0:00:30]} 57. Kd2 {[%emt 0:00:56]} Kb4 {[%emt 0:00:40]} 58. Rb8 {[%emt 0:00:22]} Rh2+ {[%emt 0:00:20]} 59. Kc1 {[%emt 0:06:32]} Rxh7 {[%emt 0:00:03]} 60. Rxb6+ {[%emt 0:00:37]} Kc3 {[%emt 0:00:01]} 61. Kb1 {[%emt 0:00:09]} Rh1+ {[%emt 0:00:19]} 62. Ka2 {[%emt 0:00:05]} Kc2 {[%emt 0:00:44]} 63. Rg6 {[%emt 0:04:41]} Rd1 {[%emt 0:00:07]} 64. Ka3 {[%emt 0:01:30]} c3 {[%emt 0:00:37]} 65. Rg3 {[%emt 0:01:28]} Rd4 {[%emt 0:01:11]} 66. Rg2+ {[%emt 0:00:28]} Rd2 {[%emt 0:00:18]} 67. Rg3 {[%emt 0:00:00]} Rh2 {[%emt 0:00:10]} 68. Kb4 {[%emt 0:01:08]} Rh4+ {[%emt 0:00:06]} 69. Ka3 {[%emt 0:00:02]} Rd4 {[%emt 0:00:06]} 70. Rg2+ {[%emt 0:00:09]} Rd2 {[%emt 0:00:07]} 71. Rg3 {[%emt 0:00:06]} Re2 {[%emt 0:00:20]} 72. Kb4 {[%emt 0:00:51]} Re4+ {[%emt 0:00:10]} 73. Ka3 {[%emt 0:00:01]} Re7 {[%emt 0:01:45]} 74. Rg2+ {[%emt 0:00:38]} Kd3 {[%emt 0:00:06]} 75. Rg3+ {[%emt 0:00:44]} Re3 {[%emt 0:01:03]} 76. Rg2 {[%emt 0:00:41]} Re2 {[%emt 0:00:17]} 77. Rg8 {[%emt 0:00:35]} Kd2 {[%emt 0:00:50]} 78. Rc8 {[%emt 0:01:19]} c2 {[%emt 0:00:37]} 79. Kb2 {[%emt 0:00:16]} Kd1 {[%emt 0:00:02]} 80. Ka1 {[%emt 0:00:00]} Rd2 {[%emt 0:00:35]} 81. Rc7 {[%emt 0:00:19]} Rd6 {[%emt 0:00:28]} 0-1

[Event "Eurasia Open Cup 2019"]
[Site "Ekaterinburg"]
[Date "2019.08.05"]
[Round "5.24"]
[White "Khanin, Semen"]
[Black "Manakova, Maria"]
[Result "1-0"]
[ECO "B22"]
[WhiteElo "2517"]
[BlackElo "2237"]
[Annotator "ChessBase"]
[PlyCount "69"]
[EventDate "2019.07.31"]
[EventType "swiss"]
[EventCountry "RUS"]
[SourceTitle "playchess.com"]
[Source "ChessBase"]
[SourceQuality "1"]
[TimeControl "5400+30"]

1. e4 {[%emt 0:00:00]} c5 {[%emt 0:00:00]} 2. Nf3 {[%emt 0:00:00]} Nc6 {[%emt 0:00:00]} 3. c3 {[%emt 0:00:00]} d5 {[%emt 0:00:25]} 4. exd5 {[%emt 0:00:00]} Qxd5 {[%emt 0:00:04]} 5. Na3 {[%emt 0:00:00]} Nf6 {[%emt 0:06:35]} 6. Bc4 {[%emt 0:01:07]} Qe4+ {[%emt 0:02:23]} 7. Be2 {[%emt 0:00:05]} Bg4 {[%emt 0:24:43]} 8. O-O {[%emt 0:05:03]} e6 {[%emt 0:00:14]} 9. d3 {[%emt 0:01:50]} Qd5 {[%emt 0:05:23]} 10. Nc4 {[%emt 0:00:39]} Bh5 {[%emt 0:05:32]} 11. Qb3 {[%emt 0:04:05]} Be7 {[%emt 0:01:08]} 12. Re1 {[%emt 0:07:22]} b6 {[%emt 0:06:44]} 13. Bf4 {[%emt 0:05:21]} O-O {[%emt 0:01:07]} 14. a4 {[%emt 0:06:05]} Nd7 {[%emt 0:09:18]} 15. Rad1 {[%emt 0:06:34]} g5 {[%emt 0:03:23]} 16. Be3 {[%emt 0:21:24]} g4 {[%emt 0:00:53]} 17. Nfd2 {[%emt 0:00:07]} f5 {[%emt 0:04:46]} 18. g3 {[%emt 0:01:23]} e5 {[%emt 0:01:02]} 19. Bf1 {[%emt 0:05:08]} f4 {[%emt 0:06:14]} 20. Bg2 {[%emt 0:02:12]} f3 {[%emt 0:00:19]} 21. Bf1 {[%emt 0:00:04]} Bf7 {[%emt 0:05:22]} 22. Ne4 {[%emt 0:06:08]} Qe6 {[%emt 0:03:15]} 23. Qc2 {[%emt 0:05:40]} h5 {[%emt 0:01:00]} 24. h4 {[%emt 0:00:00]} Qg6 {[%emt 0:04:20]} 25. Bg5 {[%emt 0:01:19]} Bxg5 {[%emt 0:00:47]} 26. hxg5 {[%emt 0:00:33]} Kg7 {[%emt 0:01:26]} 27. d4 {[%emt 0:02:04]} cxd4 {[%emt 0:01:45]} 28. cxd4 {[%emt 0:00:34]} exd4 {[%emt 0:01:34]} 29. Ncd6 {[%emt 0:02:34]} Bd5 {[%emt 0:01:02]} 30. Rxd4 {[%emt 0:03:29]} Nxd4 {[%emt 0:01:25]} 31. Qc3 {[%emt 0:00:03]} Bxe4 {[%emt 0:00:14]} 32. Qxd4+ {[%emt 0:01:55]} Kh7 {[%emt 0:00:14]} 33. Rxe4 {[%emt 0:02:37]} Qg7 {[%emt 0:01:54]} 34. Qe3 {[%emt 0:02:11]} Kh8 {[%emt 0:00:36]} 35. Re7 {[%emt 0:00:40]} 1-0

[Event "Eurasia Open Cup 2019"]
[Site "Ekaterinburg"]
[Date "2019.08.05"]
[Round "5.25"]
[White "Kezin, Roman"]
[Black "Larichev, Dmitry"]
[Result "1-0"]
[ECO "E09"]
[WhiteElo "2470"]
[BlackElo "2225"]
[Annotator "ChessBase"]
[PlyCount "74"]
[EventDate "2019.07.31"]
[EventType "swiss"]
[EventCountry "RUS"]
[SourceTitle "playchess.com"]
[Source "ChessBase"]
[SourceQuality "1"]
[TimeControl "5400+30"]

1. d4 {[%emt 0:00:00]} Nf6 {[%emt 0:00:15]} 2. c4 {[%emt 0:00:00]} e6 {[%emt 0:01:24]} 3. g3 {[%emt 0:00:00]} d5 {[%emt 0:02:51]} 4. Bg2 {[%emt 0:00:00]} Be7 {[%emt 0:01:06]} 5. Nf3 {[%emt 0:00:00]} O-O {[%emt 0:00:10]} 6. O-O {[%emt 0:06:49]} c6 {[%emt 0:07:10]} 7. Qc2 {[%emt 0:00:05]} Nbd7 {[%emt 0:01:10]} 8. Nbd2 {[%emt 0:00:10]} b6 {[%emt 0:02:51]} 9. e4 {[%emt 0:00:05]} dxe4 {[%emt 0:00:35]} 10. Nxe4 {[%emt 0:00:05]} Nxe4 {[%emt 0:01:01]} 11. Qxe4 {[%emt 0:00:05]} Bb7 {[%emt 0:00:15]} 12. Rd1 {[%emt 0:00:15]} Nf6 {[%emt 0:00:55]} 13. Qc2 {[%emt 0:00:05]} Qc8 {[%emt 0:02:16]} 14. c5 {[%emt 0:00:05]} Rd8 {[%emt 0:01:46]} 15. Bd2 {[%emt 0:08:11]} Nd5 {[%emt 0:04:14]} 16. Re1 {[%emt 0:10:52]} h6 {[%emt 0:08:23]} 17. Rad1 {[%emt 0:01:21]} Bf6 {[%emt 0:00:35]} 18. h4 {[%emt 0:03:35]} Ne7 {[%emt 0:04:23]} 19. Bg5 {[%emt 0:18:37]} Nd5 {[%emt 0:12:22]} 20. Bxf6 {[%emt 0:00:10]} Nxf6 {[%emt 0:00:05]} 21. Ne5 {[%emt 0:02:27]} Qc7 {[%emt 0:02:43]} 22. a3 {[%emt 0:21:30]} Rac8 {[%emt 0:03:13]} 23. b4 {[%emt 0:00:14]} Nd5 {[%emt 0:12:00]} 24. Qc1 {[%emt 0:10:23]} Ba6 {[%emt 0:02:35]} 25. Qc2 {[%emt 0:02:22]} Bb7 {[%emt 0:04:34]} 26. Bf3 {[%emt 0:00:37]} Rf8 {[%emt 0:05:47]} 27. Rc1 {[%emt 0:00:44]} Qd8 {[%emt 0:05:16]} 28. Qd2 {[%emt 0:04:01]} Rc7 {[%emt 0:03:11]} 29. a4 {[%emt 0:00:08]} Qc8 {[%emt 0:01:02]} 30. Rc2 {[%emt 0:03:41]} Rd8 {[%emt 0:00:59]} 31. Rec1 {[%emt 0:00:49]} Ne7 {[%emt 0:00:39]} 32. Be4 {[%emt 0:00:04]} Nf5 {[%emt 0:01:23]} 33. Bxf5 {[%emt 0:02:14]} exf5 {[%emt 0:00:00]} 34. Nc4 {[%emt 0:00:04]} bxc5 {[%emt 0:00:25]} 35. bxc5 {[%emt 0:00:04]} Ba6 {[%emt 0:02:14]} 36. Nd6 {[%emt 0:00:03]} Qe6 {[%emt 0:00:18]} 37. Qa5 {[%emt 0:00:22]} Bc8 {[%emt 0:03:40]} 1-0